Workbook

Sheet Puan İzleme Aracı
B1: Puanlarınızı Buraya Girin
C3: Ders | D3: Tür | E3: Açıklama | F3: Puan
C4: Modern Fransızca | D4: Ev Ödevi | E4: 2. Dünya Savaşı Tarihi | F4: 80%
C5: Java'da Gelişmiş Programlama | D5: Dönem Ortası | F5: 75%
C6: İspanyolca | D6: Ev Ödevi | F6: 50%
C7: Teorik Fizik | D7: Ev Ödevi | F7: 95%
C8: Modern Fransızca | D8: Ev Ödevi | E8: 1. Dünya Savaşı Tarihi | F8: 90%
C9: Modern Fransızca | D9: Ev Ödevi | E9: Sayfa 30 - 41 | F9: 80%
C10: Kompozisyon | D10: Deneme | E10: İkna ödevi | F10: 95%
C11: Matematik 1 | D11: Ev Ödevi | E11: Sayfa 21 ve 26 | F11: 80%
C12: Matematik 2 | D12: Ev Ödevi | E12: Sayaf 15 ve 18 | F12: 85%
C13: Matematik 1 | D13: Ev Ödevi | E13: Sayfa 34 - 36 | F13: 80%
C14: Matematik 2 | D14: Ara Sınav | F14: 95%

Sheet Performansınız
B1: Performansınız
C3: Toplamlar
C4: ="Saatler: "&SUM(tblDersler[Kredi Saatleri]) -> Saatler: 24 | D4: =AVERAGE(D7:D31) -> 81% | E4: =AVERAGE(E7:E31) -> 2.71 | F4: =SUM(F7:F31) -> 2.63 | G4: =IFERROR(HLOOKUP(D4,lstNotOrtalamasıEşlemesi,2),"") -> B-
C6: Dersler | D6: % | E6: Not Ortalaması | F6: Ağr. Not Ort. | G6: Harf | H6: Genel Performans
C7: =Hesaplamalar!C6 -> Modern Fransızca | D7: =Hesaplamalar!AL6 -> 83% | E7: =Hesaplamalar!AM6 -> 3.00 | F7: =IFERROR(E7*Ayarlar!D9/SUM(tblDersler[Kredi Saatleri]),"") -> 0.38 | G7: =Hesaplamalar!AN6 -> B
C8: =Hesaplamalar!C7 -> Teorik Fizik | D8: =Hesaplamalar!AL7 -> 95% | E8: =Hesaplamalar!AM7 -> 4.00 | F8: =IFERROR(E8*Ayarlar!D10/SUM(tblDersler[Kredi Saatleri]),"") -> 0.50 | G8: =Hesaplamalar!AN7 -> A
C9: =Hesaplamalar!C8 -> Matematik 1 | D9: =Hesaplamalar!AL8 -> 80% | E9: =Hesaplamalar!AM8 -> 2.67 | F9: =IFERROR(E9*Ayarlar!D11/SUM(tblDersler[Kredi Saatleri]),"") -> 0.45 | G9: =Hesaplamalar!AN8 -> B-
C10: =Hesaplamalar!C9 -> Matematik 2 | D10: =Hesaplamalar!AL9 -> 89% | E10: =Hesaplamalar!AM9 -> 3.33 | F10: =IFERROR(E10*Ayarlar!D12/SUM(tblDersler[Kredi Saatleri]),"") -> 0.56 | G10: =Hesaplamalar!AN9 -> B+
C11: =Hesaplamalar!C10 -> Java'da Gelişmiş Programlama | D11: =Hesaplamalar!AL10 -> 75% | E11: =Hesaplamalar!AM10 -> 2.00 | F11: =IFERROR(E11*Ayarlar!D13/SUM(tblDersler[Kredi Saatleri]),"") -> 0.42 | G11: =Hesaplamalar!AN10 -> C
C12: =Hesaplamalar!C11 -> İspanyolca | D12: =Hesaplamalar!AL11 -> 50% | E12: =Hesaplamalar!AM11 -> 0.00 | F12: =IFERROR(E12*Ayarlar!D14/SUM(tblDersler[Kredi Saatleri]),"") -> 0.00 | G12: =Hesaplamalar!AN11 -> F
C13: =Hesaplamalar!C12 -> Kompozisyon | D13: =Hesaplamalar!AL12 -> 95% | E13: =Hesaplamalar!AM12 -> 4.00 | F13: =IFERROR(E13*Ayarlar!D15/SUM(tblDersler[Kredi Saatleri]),"") -> 0.33 | G13: =Hesaplamalar!AN12 -> A
C14: =Hesaplamalar!C13 ->  | D14: =Hesaplamalar!AL13 ->  | E14: =Hesaplamalar!AM13 ->  | F14: =IFERROR(E14*Ayarlar!D16/SUM(tblDersler[Kredi Saatleri]),"") ->  | G14: =Hesaplamalar!AN13 -> 
C15: =Hesaplamalar!C14 ->  | D15: =Hesaplamalar!AL14 ->  | E15: =Hesaplamalar!AM14 ->  | F15: =IFERROR(E15*Ayarlar!D17/SUM(tblDersler[Kredi Saatleri]),"") ->  | G15: =Hesaplamalar!AN14 -> 
C16: =Hesaplamalar!C15 ->  | D16: =Hesaplamalar!AL15 ->  | E16: =Hesaplamalar!AM15 ->  | F16: =IFERROR(E16*Ayarlar!D18/SUM(tblDersler[Kredi Saatleri]),"") ->  | G16: =Hesaplamalar!AN15 -> 
C17: =Hesaplamalar!C16 ->  | D17: =Hesaplamalar!AL16 ->  | E17: =Hesaplamalar!AM16 ->  | F17: =IFERROR(E17*Ayarlar!D19/SUM(tblDersler[Kredi Saatleri]),"") ->  | G17: =Hesaplamalar!AN16 -> 
C18: =Hesaplamalar!C17 ->  | D18: =Hesaplamalar!AL17 ->  | E18: =Hesaplamalar!AM17 ->  | F18: =IFERROR(E18*Ayarlar!D20/SUM(tblDersler[Kredi Saatleri]),"") ->  | G18: =Hesaplamalar!AN17 -> 
C19: =Hesaplamalar!C18 ->  | D19: =Hesaplamalar!AL18 ->  | E19: =Hesaplamalar!AM18 ->  | F19: =IFERROR(E19*Ayarlar!D21/SUM(tblDersler[Kredi Saatleri]),"") ->  | G19: =Hesaplamalar!AN18 -> 
C20: =Hesaplamalar!C19 ->  | D20: =Hesaplamalar!AL19 ->  | E20: =Hesaplamalar!AM19 ->  | F20: =IFERROR(E20*Ayarlar!D22/SUM(tblDersler[Kredi Saatleri]),"") ->  | G20: =Hesaplamalar!AN19 -> 
C21: =Hesaplamalar!C20 ->  | D21: =Hesaplamalar!AL20 ->  | E21: =Hesaplamalar!AM20 ->  | F21: =IFERROR(E21*Ayarlar!D23/SUM(tblDersler[Kredi Saatleri]),"") ->  | G21: =Hesaplamalar!AN20 -> 
C22: =Hesaplamalar!C21 ->  | D22: =Hesaplamalar!AL21 ->  | E22: =Hesaplamalar!AM21 ->  | F22: =IFERROR(E22*Ayarlar!D24/SUM(tblDersler[Kredi Saatleri]),"") ->  | G22: =Hesaplamalar!AN21 -> 
C23: =Hesaplamalar!C22 ->  | D23: =Hesaplamalar!AL22 ->  | E23: =Hesaplamalar!AM22 ->  | F23: =IFERROR(E23*Ayarlar!D25/SUM(tblDersler[Kredi Saatleri]),"") ->  | G23: =Hesaplamalar!AN22 -> 
C24: =Hesaplamalar!C23 ->  | D24: =Hesaplamalar!AL23 ->  | E24: =Hesaplamalar!AM23 ->  | F24: =IFERROR(E24*Ayarlar!D26/SUM(tblDersler[Kredi Saatleri]),"") ->  | G24: =Hesaplamalar!AN23 -> 
C25: =Hesaplamalar!C24 ->  | D25: =Hesaplamalar!AL24 ->  | E25: =Hesaplamalar!AM24 ->  | F25: =IFERROR(E25*Ayarlar!D27/SUM(tblDersler[Kredi Saatleri]),"") ->  | G25: =Hesaplamalar!AN24 -> 
C26: =Hesaplamalar!C25 ->  | D26: =Hesaplamalar!AL25 ->  | E26: =Hesaplamalar!AM25 ->  | F26: =IFERROR(E26*Ayarlar!D28/SUM(tblDersler[Kredi Saatleri]),"") ->  | G26: =Hesaplamalar!AN25 -> 
C27: =Hesaplamalar!C26 ->  | D27: =Hesaplamalar!AL26 ->  | E27: =Hesaplamalar!AM26 ->  | F27: =IFERROR(E27*Ayarlar!D29/SUM(tblDersler[Kredi Saatleri]),"") ->  | G27: =Hesaplamalar!AN26 -> 
C28: =Hesaplamalar!C27 ->  | D28: =Hesaplamalar!AL27 ->  | E28: =Hesaplamalar!AM27 ->  | F28: =IFERROR(E28*Ayarlar!D30/SUM(tblDersler[Kredi Saatleri]),"") ->  | G28: =Hesaplamalar!AN27 -> 
C29: =Hesaplamalar!C28 ->  | D29: =Hesaplamalar!AL28 ->  | E29: =Hesaplamalar!AM28 ->  | F29: =IFERROR(E29*Ayarlar!D31/SUM(tblDersler[Kredi Saatleri]),"") ->  | G29: =Hesaplamalar!AN28 -> 
C30: =Hesaplamalar!C29 ->  | D30: =Hesaplamalar!AL29 ->  | E30: =Hesaplamalar!AM29 ->  | F30: =IFERROR(E30*Ayarlar!D32/SUM(tblDersler[Kredi Saatleri]),"") ->  | G30: =Hesaplamalar!AN29 -> 
C31: =Hesaplamalar!C30 ->  | D31: =Hesaplamalar!AL30 ->  | E31: =Hesaplamalar!AM30 ->  | F31: =IFERROR(E31*Ayarlar!D33/SUM(tblDersler[Kredi Saatleri]),"") ->  | G31: =Hesaplamalar!AN30 -> 

Sheet Ayarlar
B1: Ayarlar
C2: Puanlar ve Not Ortalaması eşlemesi
C3: Yüzde | D3: 0% | E3: 60% | F3: 63% | G3: 67% | H3: 70% | I3: 73% | J3: 77% | K3: 80% | L3: 83% | M3: 87% | N3: 90% | O3: 93% | P3: 97%
C4: Harf Notu | D4: F | E4: D- | F4: D | G4: D+ | H4: C- | I4: C | J4: C+ | K4: B- | L4: B | M4: B+ | N4: A- | O4: A | P4: A+
C5: Not Ortalaması | D5: 0 | E5: 0.67 | F5: 1 | G5: 1.33 | H5: 1.67 | I5: 2 | J5: 2.33 | K5: 2.67 | L5: 3 | M5: 3.33 | N5: 3.67 | O5: 4 | P5: 4
C7: 25 derse kadar ağırlıklı puanlar
C8: Gördüğünüz dersler | D8: Kredi Saatleri | E8: Ev Ödevi | F8: Deneme | G8: Ara Sınav | H8: Proje | I8: Dönem Ortası | J8: Final Sınavı | K8: Diğer | L8: % Toplam
C9: Modern Fransızca | D9: 3.0 | E9: 10% | F9: 15% | G9: 15% | H9: 10% | I9: 20% | J9: 30% | L9: =SUM(tblDersler[[#This Row],[Ev Ödevi]:[Diğer]]) -> 100%
C10: Teorik Fizik | D10: 3.0 | E10: 15% | F10: 15% | G10: 10% | H10: 10% | I10: 15% | J10: 30% | K10: 5% | L10: =SUM(tblDersler[[#This Row],[Ev Ödevi]:[Diğer]]) -> 100%
C11: Matematik 1 | D11: 4.0 | E11: 10% | F11: 15% | G11: 15% | H11: 10% | I11: 20% | J11: 30% | L11: =SUM(tblDersler[[#This Row],[Ev Ödevi]:[Diğer]]) -> 100%
C12: Matematik 2 | D12: 4.0 | E12: 15% | F12: 15% | G12: 10% | H12: 10% | I12: 15% | J12: 30% | K12: 5% | L12: =SUM(tblDersler[[#This Row],[Ev Ödevi]:[Diğer]]) -> 100%
C13: Java'da Gelişmiş Programlama | D13: 5.0 | E13: 15% | F13: 15% | G13: 10% | H13: 10% | I13: 20% | J13: 30% | L13: =SUM(tblDersler[[#This Row],[Ev Ödevi]:[Diğer]]) -> 100%
C14: İspanyolca | D14: 3.0 | E14: 10% | F14: 15% | G14: 17% | H14: 13% | I14: 20% | J14: 20% | K14: 5% | L14: =SUM(tblDersler[[#This Row],[Ev Ödevi]:[Diğer]]) -> 100%
C15: Kompozisyon | D15: 2.0 | E15: 15% | F15: 15% | G15: 12% | H15: 15% | I15: 15% | J15: 25% | K15: 3% | L15: =SUM(tblDersler[[#This Row],[Ev Ödevi]:[Diğer]]) -> 100%

Sheet Hesaplamalar (hidden)
B1: Hesaplamalar
C2: Bu çalışma sayfasında notlarınıza ve ortalama notunuza ilişkin hesaplamalar verilmektedir ve sayfa gizli kalmalıdır. Bu sayfada herhangi bir değişiklik yapılması hatalara yol açabilir.
C4: Mevcut Ders Listesi | D4: Puanlar (1 üzerinden) | AC4: Not Hesaplama
C5: Ders | D5: 1 | E5: 2 | F5: 3 | G5: 4 | H5: 5 | I5: 6 | J5: 7 | K5: 8 | L5: 9 | M5: 10 | N5: 11 | O5: 12 | P5: 13 | Q5: 14 | R5: 15 | S5: 16 | T5: 17 | U5: 18 | V5: 19 | W5: 20 | X5: 21 | Y5: 22 | Z5: 23 | AA5: 24 | AB5: 25 | AC5: =tblDersler[[#Headers],[Ev Ödevi]] -> Ev Ödevi | AD5: =tblDersler[[#Headers],[Deneme]] -> Deneme | AE5: =tblDersler[[#Headers],[Ara Sınav]] -> Ara Sınav | AF5: =tblDersler[[#Headers],[Proje]] -> Proje | AG5: =tblDersler[[#Headers],[Dönem Ortası]] -> Dönem Ortası | AH5: =tblDersler[[#Headers],[Final Sınavı]] -> Final Sınavı | AI5: =tblDersler[[#Headers],[Diğer]] -> Diğer | AJ5: Toplam | AK5: Toplam Olası Puanlar | AL5: Toplam % | AM5: Not Puanı | AN5: Harf Notu
C6: =IF(Ayarlar!C9="","",Ayarlar!C9) -> Modern Fransızca | D6: =IFERROR(INDEX(tblDersNotları[],MATCH($C6:$C30&D$5:AB$5,Hesaplamalar!$C$33:$C$657,0),4),"") -> 80% | E6: 90% | F6: 80% | AC6: =IFERROR(AVERAGEIFS(tblDersNotları[Puan],tblDersNotları[Ders],Hesaplamalar!$C6,tblDersNotları[Tür],Hesaplamalar!AC$5)*Ayarlar!E9,"") -> 0.08333333333 | AD6: =IFERROR(AVERAGEIFS(tblDersNotları[Puan],tblDersNotları[Ders],Hesaplamalar!$C6,tblDersNotları[Tür],Hesaplamalar!AD$5)*Ayarlar!F9,"") ->  | AE6: =IFERROR(AVERAGEIFS(tblDersNotları[Puan],tblDersNotları[Ders],Hesaplamalar!$C6,tblDersNotları[Tür],Hesaplamalar!AE$5)*Ayarlar!G9,"") ->  | AF6: =IFERROR(AVERAGEIFS(tblDersNotları[Puan],tblDersNotları[Ders],Hesaplamalar!$C6,tblDersNotları[Tür],Hesaplamalar!AF$5)*Ayarlar!H9,"") ->  | AG6: =IFERROR(AVERAGEIFS(tblDersNotları[Puan],tblDersNotları[Ders],Hesaplamalar!$C6,tblDersNotları[Tür],Hesaplamalar!AG$5)*Ayarlar!I9,"") ->  | AH6: =IFERROR(AVERAGEIFS(tblDersNotları[Puan],tblDersNotları[Ders],Hesaplamalar!$C6,tblDersNotları[Tür],Hesaplamalar!AH$5)*Ayarlar!J9,"") ->  | AI6: =IFERROR(AVERAGEIFS(tblDersNotları[Puan],tblDersNotları[Ders],Hesaplamalar!$C6,tblDersNotları[Tür],Hesaplamalar!AI$5)*Ayarlar!K9,"") ->  | AJ6: =SUM(AC6:AI6) -> 0.08333333333 | AK6: =SUMIFS(Ayarlar!E9:K9,Hesaplamalar!AC6:AI6,">0") -> 0.1 | AL6: =IFERROR(AJ6/AK6,"") -> 83% | AM6: =IFERROR(HLOOKUP(AL6,lstNotOrtalamasıEşlemesi,3),"") -> 3 | AN6: =IFERROR(HLOOKUP(AL6,lstNotOrtalamasıEşlemesi,2),"") -> B
C7: =IF(Ayarlar!C10="","",Ayarlar!C10) -> Teorik Fizik | D7: 95% | AC7: =IFERROR(AVERAGEIFS(tblDersNotları[Puan],tblDersNotları[Ders],Hesaplamalar!$C7,tblDersNotları[Tür],Hesaplamalar!AC$5)*Ayarlar!E10,"") -> 0.1425 | AD7: =IFERROR(AVERAGEIFS(tblDersNotları[Puan],tblDersNotları[Ders],Hesaplamalar!$C7,tblDersNotları[Tür],Hesaplamalar!AD$5)*Ayarlar!F10,"") ->  | AE7: =IFERROR(AVERAGEIFS(tblDersNotları[Puan],tblDersNotları[Ders],Hesaplamalar!$C7,tblDersNotları[Tür],Hesaplamalar!AE$5)*Ayarlar!G10,"") ->  | AF7: =IFERROR(AVERAGEIFS(tblDersNotları[Puan],tblDersNotları[Ders],Hesaplamalar!$C7,tblDersNotları[Tür],Hesaplamalar!AF$5)*Ayarlar!H10,"") ->  | AG7: =IFERROR(AVERAGEIFS(tblDersNotları[Puan],tblDersNotları[Ders],Hesaplamalar!$C7,tblDersNotları[Tür],Hesaplamalar!AG$5)*Ayarlar!I10,"") ->  | AH7: =IFERROR(AVERAGEIFS(tblDersNotları[Puan],tblDersNotları[Ders],Hesaplamalar!$C7,tblDersNotları[Tür],Hesaplamalar!AH$5)*Ayarlar!J10,"") ->  | AI7: =IFERROR(AVERAGEIFS(tblDersNotları[Puan],tblDersNotları[Ders],Hesaplamalar!$C7,tblDersNotları[Tür],Hesaplamalar!AI$5)*Ayarlar!K10,"") ->  | AJ7: =SUM(AC7:AI7) -> 0.1425 | AK7: =SUMIFS(Ayarlar!E10:K10,Hesaplamalar!AC7:AI7,">0") -> 0.15 | AL7: =IFERROR(AJ7/AK7,"") -> 95% | AM7: 4 | AN7: A
C8: =IF(Ayarlar!C11="","",Ayarlar!C11) -> Matematik 1 | D8: 80% | E8: 80% | AC8: =IFERROR(AVERAGEIFS(tblDersNotları[Puan],tblDersNotları[Ders],Hesaplamalar!$C8,tblDersNotları[Tür],Hesaplamalar!AC$5)*Ayarlar!E11,"") -> 0.08 | AD8: =IFERROR(AVERAGEIFS(tblDersNotları[Puan],tblDersNotları[Ders],Hesaplamalar!$C8,tblDersNotları[Tür],Hesaplamalar!AD$5)*Ayarlar!F11,"") ->  | AE8: =IFERROR(AVERAGEIFS(tblDersNotları[Puan],tblDersNotları[Ders],Hesaplamalar!$C8,tblDersNotları[Tür],Hesaplamalar!AE$5)*Ayarlar!G11,"") ->  | AF8: =IFERROR(AVERAGEIFS(tblDersNotları[Puan],tblDersNotları[Ders],Hesaplamalar!$C8,tblDersNotları[Tür],Hesaplamalar!AF$5)*Ayarlar!H11,"") ->  | AG8: =IFERROR(AVERAGEIFS(tblDersNotları[Puan],tblDersNotları[Ders],Hesaplamalar!$C8,tblDersNotları[Tür],Hesaplamalar!AG$5)*Ayarlar!I11,"") ->  | AH8: =IFERROR(AVERAGEIFS(tblDersNotları[Puan],tblDersNotları[Ders],Hesaplamalar!$C8,tblDersNotları[Tür],Hesaplamalar!AH$5)*Ayarlar!J11,"") ->  | AI8: =IFERROR(AVERAGEIFS(tblDersNotları[Puan],tblDersNotları[Ders],Hesaplamalar!$C8,tblDersNotları[Tür],Hesaplamalar!AI$5)*Ayarlar!K11,"") ->  | AJ8: 0.08 | AK8: =SUMIFS(Ayarlar!E11:K11,Hesaplamalar!AC8:AI8,">0") -> 0.1 | AL8: 80% | AM8: 2.67 | AN8: B-
C9: =IF(Ayarlar!C12="","",Ayarlar!C12) -> Matematik 2 | D9: 85% | E9: 95% | AC9: =IFERROR(AVERAGEIFS(tblDersNotları[Puan],tblDersNotları[Ders],Hesaplamalar!$C9,tblDersNotları[Tür],Hesaplamalar!AC$5)*Ayarlar!E12,"") -> 0.1275 | AD9: =IFERROR(AVERAGEIFS(tblDersNotları[Puan],tblDersNotları[Ders],Hesaplamalar!$C9,tblDersNotları[Tür],Hesaplamalar!AD$5)*Ayarlar!F12,"") ->  | AE9: =IFERROR(AVERAGEIFS(tblDersNotları[Puan],tblDersNotları[Ders],Hesaplamalar!$C9,tblDersNotları[Tür],Hesaplamalar!AE$5)*Ayarlar!G12,"") -> 0.095 | AF9: =IFERROR(AVERAGEIFS(tblDersNotları[Puan],tblDersNotları[Ders],Hesaplamalar!$C9,tblDersNotları[Tür],Hesaplamalar!AF$5)*Ayarlar!H12,"") ->  | AG9: =IFERROR(AVERAGEIFS(tblDersNotları[Puan],tblDersNotları[Ders],Hesaplamalar!$C9,tblDersNotları[Tür],Hesaplamalar!AG$5)*Ayarlar!I12,"") ->  | AH9: =IFERROR(AVERAGEIFS(tblDersNotları[Puan],tblDersNotları[Ders],Hesaplamalar!$C9,tblDersNotları[Tür],Hesaplamalar!AH$5)*Ayarlar!J12,"") ->  | AI9: =IFERROR(AVERAGEIFS(tblDersNotları[Puan],tblDersNotları[Ders],Hesaplamalar!$C9,tblDersNotları[Tür],Hesaplamalar!AI$5)*Ayarlar!K12,"") ->  | AJ9: 0.2225 | AK9: =SUMIFS(Ayarlar!E12:K12,Hesaplamalar!AC9:AI9,">0") -> 0.25 | AL9: 89% | AM9: 3.33 | AN9: B+
C10: =IF(Ayarlar!C13="","",Ayarlar!C13) -> Java'da Gelişmiş Programlama | D10: 75% | AC10: =IFERROR(AVERAGEIFS(tblDersNotları[Puan],tblDersNotları[Ders],Hesaplamalar!$C10,tblDersNotları[Tür],Hesaplamalar!AC$5)*Ayarlar!E13,"") ->  | AD10: =IFERROR(AVERAGEIFS(tblDersNotları[Puan],tblDersNotları[Ders],Hesaplamalar!$C10,tblDersNotları[Tür],Hesaplamalar!AD$5)*Ayarlar!F13,"") ->  | AE10: =IFERROR(AVERAGEIFS(tblDersNotları[Puan],tblDersNotları[Ders],Hesaplamalar!$C10,tblDersNotları[Tür],Hesaplamalar!AE$5)*Ayarlar!G13,"") ->  | AF10: =IFERROR(AVERAGEIFS(tblDersNotları[Puan],tblDersNotları[Ders],Hesaplamalar!$C10,tblDersNotları[Tür],Hesaplamalar!AF$5)*Ayarlar!H13,"") ->  | AG10: =IFERROR(AVERAGEIFS(tblDersNotları[Puan],tblDersNotları[Ders],Hesaplamalar!$C10,tblDersNotları[Tür],Hesaplamalar!AG$5)*Ayarlar!I13,"") -> 0.15 | AH10: =IFERROR(AVERAGEIFS(tblDersNotları[Puan],tblDersNotları[Ders],Hesaplamalar!$C10,tblDersNotları[Tür],Hesaplamalar!AH$5)*Ayarlar!J13,"") ->  | AI10: =IFERROR(AVERAGEIFS(tblDersNotları[Puan],tblDersNotları[Ders],Hesaplamalar!$C10,tblDersNotları[Tür],Hesaplamalar!AI$5)*Ayarlar!K13,"") ->  | AJ10: 0.15 | AK10: =SUMIFS(Ayarlar!E13:K13,Hesaplamalar!AC10:AI10,">0") -> 0.2 | AL10: 75% | AM10: 2 | AN10: C
C11: =IF(Ayarlar!C14="","",Ayarlar!C14) -> İspanyolca | D11: 50% | AC11: =IFERROR(AVERAGEIFS(tblDersNotları[Puan],tblDersNotları[Ders],Hesaplamalar!$C11,tblDersNotları[Tür],Hesaplamalar!AC$5)*Ayarlar!E14,"") -> 0.05 | AD11: =IFERROR(AVERAGEIFS(tblDersNotları[Puan],tblDersNotları[Ders],Hesaplamalar!$C11,tblDersNotları[Tür],Hesaplamalar!AD$5)*Ayarlar!F14,"") ->  | AE11: =IFERROR(AVERAGEIFS(tblDersNotları[Puan],tblDersNotları[Ders],Hesaplamalar!$C11,tblDersNotları[Tür],Hesaplamalar!AE$5)*Ayarlar!G14,"") ->  | AF11: =IFERROR(AVERAGEIFS(tblDersNotları[Puan],tblDersNotları[Ders],Hesaplamalar!$C11,tblDersNotları[Tür],Hesaplamalar!AF$5)*Ayarlar!H14,"") ->  | AG11: =IFERROR(AVERAGEIFS(tblDersNotları[Puan],tblDersNotları[Ders],Hesaplamalar!$C11,tblDersNotları[Tür],Hesaplamalar!AG$5)*Ayarlar!I14,"") ->  | AH11: =IFERROR(AVERAGEIFS(tblDersNotları[Puan],tblDersNotları[Ders],Hesaplamalar!$C11,tblDersNotları[Tür],Hesaplamalar!AH$5)*Ayarlar!J14,"") ->  | AI11: =IFERROR(AVERAGEIFS(tblDersNotları[Puan],tblDersNotları[Ders],Hesaplamalar!$C11,tblDersNotları[Tür],Hesaplamalar!AI$5)*Ayarlar!K14,"") ->  | AJ11: 0.05 | AK11: =SUMIFS(Ayarlar!E14:K14,Hesaplamalar!AC11:AI11,">0") -> 0.1 | AL11: 50% | AM11: 0 | AN11: F
C12: =IF(Ayarlar!C15="","",Ayarlar!C15) -> Kompozisyon | D12: 95% | AC12: =IFERROR(AVERAGEIFS(tblDersNotları[Puan],tblDersNotları[Ders],Hesaplamalar!$C12,tblDersNotları[Tür],Hesaplamalar!AC$5)*Ayarlar!E15,"") ->  | AD12: =IFERROR(AVERAGEIFS(tblDersNotları[Puan],tblDersNotları[Ders],Hesaplamalar!$C12,tblDersNotları[Tür],Hesaplamalar!AD$5)*Ayarlar!F15,"") -> 0.1425 | AE12: =IFERROR(AVERAGEIFS(tblDersNotları[Puan],tblDersNotları[Ders],Hesaplamalar!$C12,tblDersNotları[Tür],Hesaplamalar!AE$5)*Ayarlar!G15,"") ->  | AF12: =IFERROR(AVERAGEIFS(tblDersNotları[Puan],tblDersNotları[Ders],Hesaplamalar!$C12,tblDersNotları[Tür],Hesaplamalar!AF$5)*Ayarlar!H15,"") ->  | AG12: =IFERROR(AVERAGEIFS(tblDersNotları[Puan],tblDersNotları[Ders],Hesaplamalar!$C12,tblDersNotları[Tür],Hesaplamalar!AG$5)*Ayarlar!I15,"") ->  | AH12: =IFERROR(AVERAGEIFS(tblDersNotları[Puan],tblDersNotları[Ders],Hesaplamalar!$C12,tblDersNotları[Tür],Hesaplamalar!AH$5)*Ayarlar!J15,"") ->  | AI12: =IFERROR(AVERAGEIFS(tblDersNotları[Puan],tblDersNotları[Ders],Hesaplamalar!$C12,tblDersNotları[Tür],Hesaplamalar!AI$5)*Ayarlar!K15,"") ->  | AJ12: 0.1425 | AK12: =SUMIFS(Ayarlar!E15:K15,Hesaplamalar!AC12:AI12,">0") -> 0.15 | AL12: 95% | AM12: 4 | AN12: A
C13: =IF(Ayarlar!C16="","",Ayarlar!C16) ->  | AC13: =IFERROR(AVERAGEIFS(tblDersNotları[Puan],tblDersNotları[Ders],Hesaplamalar!$C13,tblDersNotları[Tür],Hesaplamalar!AC$5)*Ayarlar!E16,"") ->  | AD13: =IFERROR(AVERAGEIFS(tblDersNotları[Puan],tblDersNotları[Ders],Hesaplamalar!$C13,tblDersNotları[Tür],Hesaplamalar!AD$5)*Ayarlar!F16,"") ->  | AE13: =IFERROR(AVERAGEIFS(tblDersNotları[Puan],tblDersNotları[Ders],Hesaplamalar!$C13,tblDersNotları[Tür],Hesaplamalar!AE$5)*Ayarlar!G16,"") ->  | AF13: =IFERROR(AVERAGEIFS(tblDersNotları[Puan],tblDersNotları[Ders],Hesaplamalar!$C13,tblDersNotları[Tür],Hesaplamalar!AF$5)*Ayarlar!H16,"") ->  | AG13: =IFERROR(AVERAGEIFS(tblDersNotları[Puan],tblDersNotları[Ders],Hesaplamalar!$C13,tblDersNotları[Tür],Hesaplamalar!AG$5)*Ayarlar!I16,"") ->  | AH13: =IFERROR(AVERAGEIFS(tblDersNotları[Puan],tblDersNotları[Ders],Hesaplamalar!$C13,tblDersNotları[Tür],Hesaplamalar!AH$5)*Ayarlar!J16,"") ->  | AI13: =IFERROR(AVERAGEIFS(tblDersNotları[Puan],tblDersNotları[Ders],Hesaplamalar!$C13,tblDersNotları[Tür],Hesaplamalar!AI$5)*Ayarlar!K16,"") ->  | AJ13: =SUM(AC13:AI13) -> 0 | AK13: =SUMIFS(Ayarlar!E16:K16,Hesaplamalar!AC13:AI13,">0") -> 0 | AL13: =IFERROR(AJ13/AK13,"") -> 
C14: =IF(Ayarlar!C17="","",Ayarlar!C17) ->  | AC14: =IFERROR(AVERAGEIFS(tblDersNotları[Puan],tblDersNotları[Ders],Hesaplamalar!$C14,tblDersNotları[Tür],Hesaplamalar!AC$5)*Ayarlar!E17,"") ->  | AD14: =IFERROR(AVERAGEIFS(tblDersNotları[Puan],tblDersNotları[Ders],Hesaplamalar!$C14,tblDersNotları[Tür],Hesaplamalar!AD$5)*Ayarlar!F17,"") ->  | AE14: =IFERROR(AVERAGEIFS(tblDersNotları[Puan],tblDersNotları[Ders],Hesaplamalar!$C14,tblDersNotları[Tür],Hesaplamalar!AE$5)*Ayarlar!G17,"") ->  | AF14: =IFERROR(AVERAGEIFS(tblDersNotları[Puan],tblDersNotları[Ders],Hesaplamalar!$C14,tblDersNotları[Tür],Hesaplamalar!AF$5)*Ayarlar!H17,"") ->  | AG14: =IFERROR(AVERAGEIFS(tblDersNotları[Puan],tblDersNotları[Ders],Hesaplamalar!$C14,tblDersNotları[Tür],Hesaplamalar!AG$5)*Ayarlar!I17,"") ->  | AH14: =IFERROR(AVERAGEIFS(tblDersNotları[Puan],tblDersNotları[Ders],Hesaplamalar!$C14,tblDersNotları[Tür],Hesaplamalar!AH$5)*Ayarlar!J17,"") ->  | AI14: =IFERROR(AVERAGEIFS(tblDersNotları[Puan],tblDersNotları[Ders],Hesaplamalar!$C14,tblDersNotları[Tür],Hesaplamalar!AI$5)*Ayarlar!K17,"") ->  | AJ14: 0 | AK14: =SUMIFS(Ayarlar!E17:K17,Hesaplamalar!AC14:AI14,">0") -> 0
C15: =IF(Ayarlar!C18="","",Ayarlar!C18) ->  | AC15: =IFERROR(AVERAGEIFS(tblDersNotları[Puan],tblDersNotları[Ders],Hesaplamalar!$C15,tblDersNotları[Tür],Hesaplamalar!AC$5)*Ayarlar!E18,"") ->  | AD15: =IFERROR(AVERAGEIFS(tblDersNotları[Puan],tblDersNotları[Ders],Hesaplamalar!$C15,tblDersNotları[Tür],Hesaplamalar!AD$5)*Ayarlar!F18,"") ->  | AE15: =IFERROR(AVERAGEIFS(tblDersNotları[Puan],tblDersNotları[Ders],Hesaplamalar!$C15,tblDersNotları[Tür],Hesaplamalar!AE$5)*Ayarlar!G18,"") ->  | AF15: =IFERROR(AVERAGEIFS(tblDersNotları[Puan],tblDersNotları[Ders],Hesaplamalar!$C15,tblDersNotları[Tür],Hesaplamalar!AF$5)*Ayarlar!H18,"") ->  | AG15: =IFERROR(AVERAGEIFS(tblDersNotları[Puan],tblDersNotları[Ders],Hesaplamalar!$C15,tblDersNotları[Tür],Hesaplamalar!AG$5)*Ayarlar!I18,"") ->  | AH15: =IFERROR(AVERAGEIFS(tblDersNotları[Puan],tblDersNotları[Ders],Hesaplamalar!$C15,tblDersNotları[Tür],Hesaplamalar!AH$5)*Ayarlar!J18,"") ->  | AI15: =IFERROR(AVERAGEIFS(tblDersNotları[Puan],tblDersNotları[Ders],Hesaplamalar!$C15,tblDersNotları[Tür],Hesaplamalar!AI$5)*Ayarlar!K18,"") ->  | AJ15: 0 | AK15: =SUMIFS(Ayarlar!E18:K18,Hesaplamalar!AC15:AI15,">0") -> 0
C16: =IF(Ayarlar!C19="","",Ayarlar!C19) ->  | AC16: =IFERROR(AVERAGEIFS(tblDersNotları[Puan],tblDersNotları[Ders],Hesaplamalar!$C16,tblDersNotları[Tür],Hesaplamalar!AC$5)*Ayarlar!E19,"") ->  | AD16: =IFERROR(AVERAGEIFS(tblDersNotları[Puan],tblDersNotları[Ders],Hesaplamalar!$C16,tblDersNotları[Tür],Hesaplamalar!AD$5)*Ayarlar!F19,"") ->  | AE16: =IFERROR(AVERAGEIFS(tblDersNotları[Puan],tblDersNotları[Ders],Hesaplamalar!$C16,tblDersNotları[Tür],Hesaplamalar!AE$5)*Ayarlar!G19,"") ->  | AF16: =IFERROR(AVERAGEIFS(tblDersNotları[Puan],tblDersNotları[Ders],Hesaplamalar!$C16,tblDersNotları[Tür],Hesaplamalar!AF$5)*Ayarlar!H19,"") ->  | AG16: =IFERROR(AVERAGEIFS(tblDersNotları[Puan],tblDersNotları[Ders],Hesaplamalar!$C16,tblDersNotları[Tür],Hesaplamalar!AG$5)*Ayarlar!I19,"") ->  | AH16: =IFERROR(AVERAGEIFS(tblDersNotları[Puan],tblDersNotları[Ders],Hesaplamalar!$C16,tblDersNotları[Tür],Hesaplamalar!AH$5)*Ayarlar!J19,"") ->  | AI16: =IFERROR(AVERAGEIFS(tblDersNotları[Puan],tblDersNotları[Ders],Hesaplamalar!$C16,tblDersNotları[Tür],Hesaplamalar!AI$5)*Ayarlar!K19,"") ->  | AJ16: 0 | AK16: =SUMIFS(Ayarlar!E19:K19,Hesaplamalar!AC16:AI16,">0") -> 0
C17: =IF(Ayarlar!C20="","",Ayarlar!C20) ->  | AC17: =IFERROR(AVERAGEIFS(tblDersNotları[Puan],tblDersNotları[Ders],Hesaplamalar!$C17,tblDersNotları[Tür],Hesaplamalar!AC$5)*Ayarlar!E20,"") ->  | AD17: =IFERROR(AVERAGEIFS(tblDersNotları[Puan],tblDersNotları[Ders],Hesaplamalar!$C17,tblDersNotları[Tür],Hesaplamalar!AD$5)*Ayarlar!F20,"") ->  | AE17: =IFERROR(AVERAGEIFS(tblDersNotları[Puan],tblDersNotları[Ders],Hesaplamalar!$C17,tblDersNotları[Tür],Hesaplamalar!AE$5)*Ayarlar!G20,"") ->  | AF17: =IFERROR(AVERAGEIFS(tblDersNotları[Puan],tblDersNotları[Ders],Hesaplamalar!$C17,tblDersNotları[Tür],Hesaplamalar!AF$5)*Ayarlar!H20,"") ->  | AG17: =IFERROR(AVERAGEIFS(tblDersNotları[Puan],tblDersNotları[Ders],Hesaplamalar!$C17,tblDersNotları[Tür],Hesaplamalar!AG$5)*Ayarlar!I20,"") ->  | AH17: =IFERROR(AVERAGEIFS(tblDersNotları[Puan],tblDersNotları[Ders],Hesaplamalar!$C17,tblDersNotları[Tür],Hesaplamalar!AH$5)*Ayarlar!J20,"") ->  | AI17: =IFERROR(AVERAGEIFS(tblDersNotları[Puan],tblDersNotları[Ders],Hesaplamalar!$C17,tblDersNotları[Tür],Hesaplamalar!AI$5)*Ayarlar!K20,"") ->  | AJ17: 0 | AK17: =SUMIFS(Ayarlar!E20:K20,Hesaplamalar!AC17:AI17,">0") -> 0
C18: =IF(Ayarlar!C21="","",Ayarlar!C21) ->  | AC18: =IFERROR(AVERAGEIFS(tblDersNotları[Puan],tblDersNotları[Ders],Hesaplamalar!$C18,tblDersNotları[Tür],Hesaplamalar!AC$5)*Ayarlar!E21,"") ->  | AD18: =IFERROR(AVERAGEIFS(tblDersNotları[Puan],tblDersNotları[Ders],Hesaplamalar!$C18,tblDersNotları[Tür],Hesaplamalar!AD$5)*Ayarlar!F21,"") ->  | AE18: =IFERROR(AVERAGEIFS(tblDersNotları[Puan],tblDersNotları[Ders],Hesaplamalar!$C18,tblDersNotları[Tür],Hesaplamalar!AE$5)*Ayarlar!G21,"") ->  | AF18: =IFERROR(AVERAGEIFS(tblDersNotları[Puan],tblDersNotları[Ders],Hesaplamalar!$C18,tblDersNotları[Tür],Hesaplamalar!AF$5)*Ayarlar!H21,"") ->  | AG18: =IFERROR(AVERAGEIFS(tblDersNotları[Puan],tblDersNotları[Ders],Hesaplamalar!$C18,tblDersNotları[Tür],Hesaplamalar!AG$5)*Ayarlar!I21,"") ->  | AH18: =IFERROR(AVERAGEIFS(tblDersNotları[Puan],tblDersNotları[Ders],Hesaplamalar!$C18,tblDersNotları[Tür],Hesaplamalar!AH$5)*Ayarlar!J21,"") ->  | AI18: =IFERROR(AVERAGEIFS(tblDersNotları[Puan],tblDersNotları[Ders],Hesaplamalar!$C18,tblDersNotları[Tür],Hesaplamalar!AI$5)*Ayarlar!K21,"") ->  | AJ18: 0 | AK18: =SUMIFS(Ayarlar!E21:K21,Hesaplamalar!AC18:AI18,">0") -> 0
C19: =IF(Ayarlar!C22="","",Ayarlar!C22) ->  | AC19: =IFERROR(AVERAGEIFS(tblDersNotları[Puan],tblDersNotları[Ders],Hesaplamalar!$C19,tblDersNotları[Tür],Hesaplamalar!AC$5)*Ayarlar!E22,"") ->  | AD19: =IFERROR(AVERAGEIFS(tblDersNotları[Puan],tblDersNotları[Ders],Hesaplamalar!$C19,tblDersNotları[Tür],Hesaplamalar!AD$5)*Ayarlar!F22,"") ->  | AE19: =IFERROR(AVERAGEIFS(tblDersNotları[Puan],tblDersNotları[Ders],Hesaplamalar!$C19,tblDersNotları[Tür],Hesaplamalar!AE$5)*Ayarlar!G22,"") ->  | AF19: =IFERROR(AVERAGEIFS(tblDersNotları[Puan],tblDersNotları[Ders],Hesaplamalar!$C19,tblDersNotları[Tür],Hesaplamalar!AF$5)*Ayarlar!H22,"") ->  | AG19: =IFERROR(AVERAGEIFS(tblDersNotları[Puan],tblDersNotları[Ders],Hesaplamalar!$C19,tblDersNotları[Tür],Hesaplamalar!AG$5)*Ayarlar!I22,"") ->  | AH19: =IFERROR(AVERAGEIFS(tblDersNotları[Puan],tblDersNotları[Ders],Hesaplamalar!$C19,tblDersNotları[Tür],Hesaplamalar!AH$5)*Ayarlar!J22,"") ->  | AI19: =IFERROR(AVERAGEIFS(tblDersNotları[Puan],tblDersNotları[Ders],Hesaplamalar!$C19,tblDersNotları[Tür],Hesaplamalar!AI$5)*Ayarlar!K22,"") ->  | AJ19: 0 | AK19: =SUMIFS(Ayarlar!E22:K22,Hesaplamalar!AC19:AI19,">0") -> 0
C20: =IF(Ayarlar!C23="","",Ayarlar!C23) ->  | AC20: =IFERROR(AVERAGEIFS(tblDersNotları[Puan],tblDersNotları[Ders],Hesaplamalar!$C20,tblDersNotları[Tür],Hesaplamalar!AC$5)*Ayarlar!E23,"") ->  | AD20: =IFERROR(AVERAGEIFS(tblDersNotları[Puan],tblDersNotları[Ders],Hesaplamalar!$C20,tblDersNotları[Tür],Hesaplamalar!AD$5)*Ayarlar!F23,"") ->  | AE20: =IFERROR(AVERAGEIFS(tblDersNotları[Puan],tblDersNotları[Ders],Hesaplamalar!$C20,tblDersNotları[Tür],Hesaplamalar!AE$5)*Ayarlar!G23,"") ->  | AF20: =IFERROR(AVERAGEIFS(tblDersNotları[Puan],tblDersNotları[Ders],Hesaplamalar!$C20,tblDersNotları[Tür],Hesaplamalar!AF$5)*Ayarlar!H23,"") ->  | AG20: =IFERROR(AVERAGEIFS(tblDersNotları[Puan],tblDersNotları[Ders],Hesaplamalar!$C20,tblDersNotları[Tür],Hesaplamalar!AG$5)*Ayarlar!I23,"") ->  | AH20: =IFERROR(AVERAGEIFS(tblDersNotları[Puan],tblDersNotları[Ders],Hesaplamalar!$C20,tblDersNotları[Tür],Hesaplamalar!AH$5)*Ayarlar!J23,"") ->  | AI20: =IFERROR(AVERAGEIFS(tblDersNotları[Puan],tblDersNotları[Ders],Hesaplamalar!$C20,tblDersNotları[Tür],Hesaplamalar!AI$5)*Ayarlar!K23,"") ->  | AJ20: 0 | AK20: =SUMIFS(Ayarlar!E23:K23,Hesaplamalar!AC20:AI20,">0") -> 0
C21: =IF(Ayarlar!C24="","",Ayarlar!C24) ->  | AC21: =IFERROR(AVERAGEIFS(tblDersNotları[Puan],tblDersNotları[Ders],Hesaplamalar!$C21,tblDersNotları[Tür],Hesaplamalar!AC$5)*Ayarlar!E24,"") ->  | AD21: =IFERROR(AVERAGEIFS(tblDersNotları[Puan],tblDersNotları[Ders],Hesaplamalar!$C21,tblDersNotları[Tür],Hesaplamalar!AD$5)*Ayarlar!F24,"") ->  | AE21: =IFERROR(AVERAGEIFS(tblDersNotları[Puan],tblDersNotları[Ders],Hesaplamalar!$C21,tblDersNotları[Tür],Hesaplamalar!AE$5)*Ayarlar!G24,"") ->  | AF21: =IFERROR(AVERAGEIFS(tblDersNotları[Puan],tblDersNotları[Ders],Hesaplamalar!$C21,tblDersNotları[Tür],Hesaplamalar!AF$5)*Ayarlar!H24,"") ->  | AG21: =IFERROR(AVERAGEIFS(tblDersNotları[Puan],tblDersNotları[Ders],Hesaplamalar!$C21,tblDersNotları[Tür],Hesaplamalar!AG$5)*Ayarlar!I24,"") ->  | AH21: =IFERROR(AVERAGEIFS(tblDersNotları[Puan],tblDersNotları[Ders],Hesaplamalar!$C21,tblDersNotları[Tür],Hesaplamalar!AH$5)*Ayarlar!J24,"") ->  | AI21: =IFERROR(AVERAGEIFS(tblDersNotları[Puan],tblDersNotları[Ders],Hesaplamalar!$C21,tblDersNotları[Tür],Hesaplamalar!AI$5)*Ayarlar!K24,"") ->  | AJ21: 0 | AK21: =SUMIFS(Ayarlar!E24:K24,Hesaplamalar!AC21:AI21,">0") -> 0
C22: =IF(Ayarlar!C25="","",Ayarlar!C25) ->  | AC22: =IFERROR(AVERAGEIFS(tblDersNotları[Puan],tblDersNotları[Ders],Hesaplamalar!$C22,tblDersNotları[Tür],Hesaplamalar!AC$5)*Ayarlar!E25,"") ->  | AD22: =IFERROR(AVERAGEIFS(tblDersNotları[Puan],tblDersNotları[Ders],Hesaplamalar!$C22,tblDersNotları[Tür],Hesaplamalar!AD$5)*Ayarlar!F25,"") ->  | AE22: =IFERROR(AVERAGEIFS(tblDersNotları[Puan],tblDersNotları[Ders],Hesaplamalar!$C22,tblDersNotları[Tür],Hesaplamalar!AE$5)*Ayarlar!G25,"") ->  | AF22: =IFERROR(AVERAGEIFS(tblDersNotları[Puan],tblDersNotları[Ders],Hesaplamalar!$C22,tblDersNotları[Tür],Hesaplamalar!AF$5)*Ayarlar!H25,"") ->  | AG22: =IFERROR(AVERAGEIFS(tblDersNotları[Puan],tblDersNotları[Ders],Hesaplamalar!$C22,tblDersNotları[Tür],Hesaplamalar!AG$5)*Ayarlar!I25,"") ->  | AH22: =IFERROR(AVERAGEIFS(tblDersNotları[Puan],tblDersNotları[Ders],Hesaplamalar!$C22,tblDersNotları[Tür],Hesaplamalar!AH$5)*Ayarlar!J25,"") ->  | AI22: =IFERROR(AVERAGEIFS(tblDersNotları[Puan],tblDersNotları[Ders],Hesaplamalar!$C22,tblDersNotları[Tür],Hesaplamalar!AI$5)*Ayarlar!K25,"") ->  | AJ22: 0 | AK22: =SUMIFS(Ayarlar!E25:K25,Hesaplamalar!AC22:AI22,">0") -> 0
C23: =IF(Ayarlar!C26="","",Ayarlar!C26) ->  | AC23: =IFERROR(AVERAGEIFS(tblDersNotları[Puan],tblDersNotları[Ders],Hesaplamalar!$C23,tblDersNotları[Tür],Hesaplamalar!AC$5)*Ayarlar!E26,"") ->  | AD23: =IFERROR(AVERAGEIFS(tblDersNotları[Puan],tblDersNotları[Ders],Hesaplamalar!$C23,tblDersNotları[Tür],Hesaplamalar!AD$5)*Ayarlar!F26,"") ->  | AE23: =IFERROR(AVERAGEIFS(tblDersNotları[Puan],tblDersNotları[Ders],Hesaplamalar!$C23,tblDersNotları[Tür],Hesaplamalar!AE$5)*Ayarlar!G26,"") ->  | AF23: =IFERROR(AVERAGEIFS(tblDersNotları[Puan],tblDersNotları[Ders],Hesaplamalar!$C23,tblDersNotları[Tür],Hesaplamalar!AF$5)*Ayarlar!H26,"") ->  | AG23: =IFERROR(AVERAGEIFS(tblDersNotları[Puan],tblDersNotları[Ders],Hesaplamalar!$C23,tblDersNotları[Tür],Hesaplamalar!AG$5)*Ayarlar!I26,"") ->  | AH23: =IFERROR(AVERAGEIFS(tblDersNotları[Puan],tblDersNotları[Ders],Hesaplamalar!$C23,tblDersNotları[Tür],Hesaplamalar!AH$5)*Ayarlar!J26,"") ->  | AI23: =IFERROR(AVERAGEIFS(tblDersNotları[Puan],tblDersNotları[Ders],Hesaplamalar!$C23,tblDersNotları[Tür],Hesaplamalar!AI$5)*Ayarlar!K26,"") ->  | AJ23: 0 | AK23: =SUMIFS(Ayarlar!E26:K26,Hesaplamalar!AC23:AI23,">0") -> 0
C24: =IF(Ayarlar!C27="","",Ayarlar!C27) ->  | AC24: =IFERROR(AVERAGEIFS(tblDersNotları[Puan],tblDersNotları[Ders],Hesaplamalar!$C24,tblDersNotları[Tür],Hesaplamalar!AC$5)*Ayarlar!E27,"") ->  | AD24: =IFERROR(AVERAGEIFS(tblDersNotları[Puan],tblDersNotları[Ders],Hesaplamalar!$C24,tblDersNotları[Tür],Hesaplamalar!AD$5)*Ayarlar!F27,"") ->  | AE24: =IFERROR(AVERAGEIFS(tblDersNotları[Puan],tblDersNotları[Ders],Hesaplamalar!$C24,tblDersNotları[Tür],Hesaplamalar!AE$5)*Ayarlar!G27,"") ->  | AF24: =IFERROR(AVERAGEIFS(tblDersNotları[Puan],tblDersNotları[Ders],Hesaplamalar!$C24,tblDersNotları[Tür],Hesaplamalar!AF$5)*Ayarlar!H27,"") ->  | AG24: =IFERROR(AVERAGEIFS(tblDersNotları[Puan],tblDersNotları[Ders],Hesaplamalar!$C24,tblDersNotları[Tür],Hesaplamalar!AG$5)*Ayarlar!I27,"") ->  | AH24: =IFERROR(AVERAGEIFS(tblDersNotları[Puan],tblDersNotları[Ders],Hesaplamalar!$C24,tblDersNotları[Tür],Hesaplamalar!AH$5)*Ayarlar!J27,"") ->  | AI24: =IFERROR(AVERAGEIFS(tblDersNotları[Puan],tblDersNotları[Ders],Hesaplamalar!$C24,tblDersNotları[Tür],Hesaplamalar!AI$5)*Ayarlar!K27,"") ->  | AJ24: 0 | AK24: =SUMIFS(Ayarlar!E27:K27,Hesaplamalar!AC24:AI24,">0") -> 0
C25: =IF(Ayarlar!C28="","",Ayarlar!C28) ->  | AC25: =IFERROR(AVERAGEIFS(tblDersNotları[Puan],tblDersNotları[Ders],Hesaplamalar!$C25,tblDersNotları[Tür],Hesaplamalar!AC$5)*Ayarlar!E28,"") ->  | AD25: =IFERROR(AVERAGEIFS(tblDersNotları[Puan],tblDersNotları[Ders],Hesaplamalar!$C25,tblDersNotları[Tür],Hesaplamalar!AD$5)*Ayarlar!F28,"") ->  | AE25: =IFERROR(AVERAGEIFS(tblDersNotları[Puan],tblDersNotları[Ders],Hesaplamalar!$C25,tblDersNotları[Tür],Hesaplamalar!AE$5)*Ayarlar!G28,"") ->  | AF25: =IFERROR(AVERAGEIFS(tblDersNotları[Puan],tblDersNotları[Ders],Hesaplamalar!$C25,tblDersNotları[Tür],Hesaplamalar!AF$5)*Ayarlar!H28,"") ->  | AG25: =IFERROR(AVERAGEIFS(tblDersNotları[Puan],tblDersNotları[Ders],Hesaplamalar!$C25,tblDersNotları[Tür],Hesaplamalar!AG$5)*Ayarlar!I28,"") ->  | AH25: =IFERROR(AVERAGEIFS(tblDersNotları[Puan],tblDersNotları[Ders],Hesaplamalar!$C25,tblDersNotları[Tür],Hesaplamalar!AH$5)*Ayarlar!J28,"") ->  | AI25: =IFERROR(AVERAGEIFS(tblDersNotları[Puan],tblDersNotları[Ders],Hesaplamalar!$C25,tblDersNotları[Tür],Hesaplamalar!AI$5)*Ayarlar!K28,"") ->  | AJ25: 0 | AK25: =SUMIFS(Ayarlar!E28:K28,Hesaplamalar!AC25:AI25,">0") -> 0
C26: =IF(Ayarlar!C29="","",Ayarlar!C29) ->  | AC26: =IFERROR(AVERAGEIFS(tblDersNotları[Puan],tblDersNotları[Ders],Hesaplamalar!$C26,tblDersNotları[Tür],Hesaplamalar!AC$5)*Ayarlar!E29,"") ->  | AD26: =IFERROR(AVERAGEIFS(tblDersNotları[Puan],tblDersNotları[Ders],Hesaplamalar!$C26,tblDersNotları[Tür],Hesaplamalar!AD$5)*Ayarlar!F29,"") ->  | AE26: =IFERROR(AVERAGEIFS(tblDersNotları[Puan],tblDersNotları[Ders],Hesaplamalar!$C26,tblDersNotları[Tür],Hesaplamalar!AE$5)*Ayarlar!G29,"") ->  | AF26: =IFERROR(AVERAGEIFS(tblDersNotları[Puan],tblDersNotları[Ders],Hesaplamalar!$C26,tblDersNotları[Tür],Hesaplamalar!AF$5)*Ayarlar!H29,"") ->  | AG26: =IFERROR(AVERAGEIFS(tblDersNotları[Puan],tblDersNotları[Ders],Hesaplamalar!$C26,tblDersNotları[Tür],Hesaplamalar!AG$5)*Ayarlar!I29,"") ->  | AH26: =IFERROR(AVERAGEIFS(tblDersNotları[Puan],tblDersNotları[Ders],Hesaplamalar!$C26,tblDersNotları[Tür],Hesaplamalar!AH$5)*Ayarlar!J29,"") ->  | AI26: =IFERROR(AVERAGEIFS(tblDersNotları[Puan],tblDersNotları[Ders],Hesaplamalar!$C26,tblDersNotları[Tür],Hesaplamalar!AI$5)*Ayarlar!K29,"") ->  | AJ26: 0 | AK26: =SUMIFS(Ayarlar!E29:K29,Hesaplamalar!AC26:AI26,">0") -> 0
C27: =IF(Ayarlar!C30="","",Ayarlar!C30) ->  | AC27: =IFERROR(AVERAGEIFS(tblDersNotları[Puan],tblDersNotları[Ders],Hesaplamalar!$C27,tblDersNotları[Tür],Hesaplamalar!AC$5)*Ayarlar!E30,"") ->  | AD27: =IFERROR(AVERAGEIFS(tblDersNotları[Puan],tblDersNotları[Ders],Hesaplamalar!$C27,tblDersNotları[Tür],Hesaplamalar!AD$5)*Ayarlar!F30,"") ->  | AE27: =IFERROR(AVERAGEIFS(tblDersNotları[Puan],tblDersNotları[Ders],Hesaplamalar!$C27,tblDersNotları[Tür],Hesaplamalar!AE$5)*Ayarlar!G30,"") ->  | AF27: =IFERROR(AVERAGEIFS(tblDersNotları[Puan],tblDersNotları[Ders],Hesaplamalar!$C27,tblDersNotları[Tür],Hesaplamalar!AF$5)*Ayarlar!H30,"") ->  | AG27: =IFERROR(AVERAGEIFS(tblDersNotları[Puan],tblDersNotları[Ders],Hesaplamalar!$C27,tblDersNotları[Tür],Hesaplamalar!AG$5)*Ayarlar!I30,"") ->  | AH27: =IFERROR(AVERAGEIFS(tblDersNotları[Puan],tblDersNotları[Ders],Hesaplamalar!$C27,tblDersNotları[Tür],Hesaplamalar!AH$5)*Ayarlar!J30,"") ->  | AI27: =IFERROR(AVERAGEIFS(tblDersNotları[Puan],tblDersNotları[Ders],Hesaplamalar!$C27,tblDersNotları[Tür],Hesaplamalar!AI$5)*Ayarlar!K30,"") ->  | AJ27: 0 | AK27: =SUMIFS(Ayarlar!E30:K30,Hesaplamalar!AC27:AI27,">0") -> 0
C28: =IF(Ayarlar!C31="","",Ayarlar!C31) ->  | AC28: =IFERROR(AVERAGEIFS(tblDersNotları[Puan],tblDersNotları[Ders],Hesaplamalar!$C28,tblDersNotları[Tür],Hesaplamalar!AC$5)*Ayarlar!E31,"") ->  | AD28: =IFERROR(AVERAGEIFS(tblDersNotları[Puan],tblDersNotları[Ders],Hesaplamalar!$C28,tblDersNotları[Tür],Hesaplamalar!AD$5)*Ayarlar!F31,"") ->  | AE28: =IFERROR(AVERAGEIFS(tblDersNotları[Puan],tblDersNotları[Ders],Hesaplamalar!$C28,tblDersNotları[Tür],Hesaplamalar!AE$5)*Ayarlar!G31,"") ->  | AF28: =IFERROR(AVERAGEIFS(tblDersNotları[Puan],tblDersNotları[Ders],Hesaplamalar!$C28,tblDersNotları[Tür],Hesaplamalar!AF$5)*Ayarlar!H31,"") ->  | AG28: =IFERROR(AVERAGEIFS(tblDersNotları[Puan],tblDersNotları[Ders],Hesaplamalar!$C28,tblDersNotları[Tür],Hesaplamalar!AG$5)*Ayarlar!I31,"") ->  | AH28: =IFERROR(AVERAGEIFS(tblDersNotları[Puan],tblDersNotları[Ders],Hesaplamalar!$C28,tblDersNotları[Tür],Hesaplamalar!AH$5)*Ayarlar!J31,"") ->  | AI28: =IFERROR(AVERAGEIFS(tblDersNotları[Puan],tblDersNotları[Ders],Hesaplamalar!$C28,tblDersNotları[Tür],Hesaplamalar!AI$5)*Ayarlar!K31,"") ->  | AJ28: 0 | AK28: =SUMIFS(Ayarlar!E31:K31,Hesaplamalar!AC28:AI28,">0") -> 0
C29: =IF(Ayarlar!C32="","",Ayarlar!C32) ->  | AC29: =IFERROR(AVERAGEIFS(tblDersNotları[Puan],tblDersNotları[Ders],Hesaplamalar!$C29,tblDersNotları[Tür],Hesaplamalar!AC$5)*Ayarlar!E32,"") ->  | AD29: =IFERROR(AVERAGEIFS(tblDersNotları[Puan],tblDersNotları[Ders],Hesaplamalar!$C29,tblDersNotları[Tür],Hesaplamalar!AD$5)*Ayarlar!F32,"") ->  | AE29: =IFERROR(AVERAGEIFS(tblDersNotları[Puan],tblDersNotları[Ders],Hesaplamalar!$C29,tblDersNotları[Tür],Hesaplamalar!AE$5)*Ayarlar!G32,"") ->  | AF29: =IFERROR(AVERAGEIFS(tblDersNotları[Puan],tblDersNotları[Ders],Hesaplamalar!$C29,tblDersNotları[Tür],Hesaplamalar!AF$5)*Ayarlar!H32,"") ->  | AG29: =IFERROR(AVERAGEIFS(tblDersNotları[Puan],tblDersNotları[Ders],Hesaplamalar!$C29,tblDersNotları[Tür],Hesaplamalar!AG$5)*Ayarlar!I32,"") ->  | AH29: =IFERROR(AVERAGEIFS(tblDersNotları[Puan],tblDersNotları[Ders],Hesaplamalar!$C29,tblDersNotları[Tür],Hesaplamalar!AH$5)*Ayarlar!J32,"") ->  | AI29: =IFERROR(AVERAGEIFS(tblDersNotları[Puan],tblDersNotları[Ders],Hesaplamalar!$C29,tblDersNotları[Tür],Hesaplamalar!AI$5)*Ayarlar!K32,"") ->  | AJ29: 0 | AK29: =SUMIFS(Ayarlar!E32:K32,Hesaplamalar!AC29:AI29,">0") -> 0
C30: =IF(Ayarlar!C33="","",Ayarlar!C33) ->  | AC30: =IFERROR(AVERAGEIFS(tblDersNotları[Puan],tblDersNotları[Ders],Hesaplamalar!$C30,tblDersNotları[Tür],Hesaplamalar!AC$5)*Ayarlar!E33,"") ->  | AD30: =IFERROR(AVERAGEIFS(tblDersNotları[Puan],tblDersNotları[Ders],Hesaplamalar!$C30,tblDersNotları[Tür],Hesaplamalar!AD$5)*Ayarlar!F33,"") ->  | AE30: =IFERROR(AVERAGEIFS(tblDersNotları[Puan],tblDersNotları[Ders],Hesaplamalar!$C30,tblDersNotları[Tür],Hesaplamalar!AE$5)*Ayarlar!G33,"") ->  | AF30: =IFERROR(AVERAGEIFS(tblDersNotları[Puan],tblDersNotları[Ders],Hesaplamalar!$C30,tblDersNotları[Tür],Hesaplamalar!AF$5)*Ayarlar!H33,"") ->  | AG30: =IFERROR(AVERAGEIFS(tblDersNotları[Puan],tblDersNotları[Ders],Hesaplamalar!$C30,tblDersNotları[Tür],Hesaplamalar!AG$5)*Ayarlar!I33,"") ->  | AH30: =IFERROR(AVERAGEIFS(tblDersNotları[Puan],tblDersNotları[Ders],Hesaplamalar!$C30,tblDersNotları[Tür],Hesaplamalar!AH$5)*Ayarlar!J33,"") ->  | AI30: =IFERROR(AVERAGEIFS(tblDersNotları[Puan],tblDersNotları[Ders],Hesaplamalar!$C30,tblDersNotları[Tür],Hesaplamalar!AI$5)*Ayarlar!K33,"") ->  | AJ30: 0 | AK30: =SUMIFS(Ayarlar!E33:K33,Hesaplamalar!AC30:AI30,">0") -> 0
B33: 1 | C33: ='Puan İzleme Aracı'!C4&COUNTIF('Puan İzleme Aracı'!$C$4:C4,'Puan İzleme Aracı'!C4) -> Modern Fransızca1
B34: 2 | C34: ='Puan İzleme Aracı'!C5&COUNTIF('Puan İzleme Aracı'!$C$4:C5,'Puan İzleme Aracı'!C5) -> Java'da Gelişmiş Programlama1
B35: 3 | C35: ='Puan İzleme Aracı'!C6&COUNTIF('Puan İzleme Aracı'!$C$4:C6,'Puan İzleme Aracı'!C6) -> İspanyolca1
B36: 4 | C36: ='Puan İzleme Aracı'!C7&COUNTIF('Puan İzleme Aracı'!$C$4:C7,'Puan İzleme Aracı'!C7) -> Teorik Fizik1
B37: 5 | C37: ='Puan İzleme Aracı'!C8&COUNTIF('Puan İzleme Aracı'!$C$4:C8,'Puan İzleme Aracı'!C8) -> Modern Fransızca2
B38: 6 | C38: ='Puan İzleme Aracı'!C9&COUNTIF('Puan İzleme Aracı'!$C$4:C9,'Puan İzleme Aracı'!C9) -> Modern Fransızca3
B39: 7 | C39: ='Puan İzleme Aracı'!C10&COUNTIF('Puan İzleme Aracı'!$C$4:C10,'Puan İzleme Aracı'!C10) -> Kompozisyon1
B40: 8 | C40: ='Puan İzleme Aracı'!C11&COUNTIF('Puan İzleme Aracı'!$C$4:C11,'Puan İzleme Aracı'!C11) -> Matematik 11
B41: 9 | C41: ='Puan İzleme Aracı'!C12&COUNTIF('Puan İzleme Aracı'!$C$4:C12,'Puan İzleme Aracı'!C12) -> Matematik 21
B42: 10 | C42: ='Puan İzleme Aracı'!C13&COUNTIF('Puan İzleme Aracı'!$C$4:C13,'Puan İzleme Aracı'!C13) -> Matematik 12
B43: 11 | C43: ='Puan İzleme Aracı'!C14&COUNTIF('Puan İzleme Aracı'!$C$4:C14,'Puan İzleme Aracı'!C14) -> Matematik 22
B44: 12 | C44: ='Puan İzleme Aracı'!C15&COUNTIF('Puan İzleme Aracı'!$C$4:C15,'Puan İzleme Aracı'!C15) -> 0
B45: 13 | C45: ='Puan İzleme Aracı'!C16&COUNTIF('Puan İzleme Aracı'!$C$4:C16,'Puan İzleme Aracı'!C16) -> 0
B46: 14 | C46: ='Puan İzleme Aracı'!C17&COUNTIF('Puan İzleme Aracı'!$C$4:C17,'Puan İzleme Aracı'!C17) -> 0
B47: 15 | C47: ='Puan İzleme Aracı'!C18&COUNTIF('Puan İzleme Aracı'!$C$4:C18,'Puan İzleme Aracı'!C18) -> 0
B48: 16 | C48: ='Puan İzleme Aracı'!C19&COUNTIF('Puan İzleme Aracı'!$C$4:C19,'Puan İzleme Aracı'!C19) -> 0
B49: 17 | C49: ='Puan İzleme Aracı'!C20&COUNTIF('Puan İzleme Aracı'!$C$4:C20,'Puan İzleme Aracı'!C20) -> 0
B50: 18 | C50: ='Puan İzleme Aracı'!C21&COUNTIF('Puan İzleme Aracı'!$C$4:C21,'Puan İzleme Aracı'!C21) -> 0
B51: 19 | C51: ='Puan İzleme Aracı'!C22&COUNTIF('Puan İzleme Aracı'!$C$4:C22,'Puan İzleme Aracı'!C22) -> 0
B52: 20 | C52: ='Puan İzleme Aracı'!C23&COUNTIF('Puan İzleme Aracı'!$C$4:C23,'Puan İzleme Aracı'!C23) -> 0
B53: 21 | C53: ='Puan İzleme Aracı'!C24&COUNTIF('Puan İzleme Aracı'!$C$4:C24,'Puan İzleme Aracı'!C24) -> 0
B54: 22 | C54: ='Puan İzleme Aracı'!C25&COUNTIF('Puan İzleme Aracı'!$C$4:C25,'Puan İzleme Aracı'!C25) -> 0
B55: 23 | C55: ='Puan İzleme Aracı'!C26&COUNTIF('Puan İzleme Aracı'!$C$4:C26,'Puan İzleme Aracı'!C26) -> 0
B56: 24 | C56: ='Puan İzleme Aracı'!C27&COUNTIF('Puan İzleme Aracı'!$C$4:C27,'Puan İzleme Aracı'!C27) -> 0
B57: 25 | C57: ='Puan İzleme Aracı'!C28&COUNTIF('Puan İzleme Aracı'!$C$4:C28,'Puan İzleme Aracı'!C28) -> 0
B58: 26 | C58: ='Puan İzleme Aracı'!C29&COUNTIF('Puan İzleme Aracı'!$C$4:C29,'Puan İzleme Aracı'!C29) -> 0
B59: 27 | C59: ='Puan İzleme Aracı'!C30&COUNTIF('Puan İzleme Aracı'!$C$4:C30,'Puan İzleme Aracı'!C30) -> 0
B60: 28 | C60: ='Puan İzleme Aracı'!C31&COUNTIF('Puan İzleme Aracı'!$C$4:C31,'Puan İzleme Aracı'!C31) -> 0
B61: 29 | C61: ='Puan İzleme Aracı'!C32&COUNTIF('Puan İzleme Aracı'!$C$4:C32,'Puan İzleme Aracı'!C32) -> 0
B62: 30 | C62: ='Puan İzleme Aracı'!C33&COUNTIF('Puan İzleme Aracı'!$C$4:C33,'Puan İzleme Aracı'!C33) -> 0
B63: 31 | C63: ='Puan İzleme Aracı'!C34&COUNTIF('Puan İzleme Aracı'!$C$4:C34,'Puan İzleme Aracı'!C34) -> 0
B64: 32 | C64: ='Puan İzleme Aracı'!C35&COUNTIF('Puan İzleme Aracı'!$C$4:C35,'Puan İzleme Aracı'!C35) -> 0
B65: 33 | C65: ='Puan İzleme Aracı'!C36&COUNTIF('Puan İzleme Aracı'!$C$4:C36,'Puan İzleme Aracı'!C36) -> 0
B66: 34 | C66: ='Puan İzleme Aracı'!C37&COUNTIF('Puan İzleme Aracı'!$C$4:C37,'Puan İzleme Aracı'!C37) -> 0
B67: 35 | C67: ='Puan İzleme Aracı'!C38&COUNTIF('Puan İzleme Aracı'!$C$4:C38,'Puan İzleme Aracı'!C38) -> 0
B68: 36 | C68: ='Puan İzleme Aracı'!C39&COUNTIF('Puan İzleme Aracı'!$C$4:C39,'Puan İzleme Aracı'!C39) -> 0
B69: 37 | C69: ='Puan İzleme Aracı'!C40&COUNTIF('Puan İzleme Aracı'!$C$4:C40,'Puan İzleme Aracı'!C40) -> 0
B70: 38 | C70: ='Puan İzleme Aracı'!C41&COUNTIF('Puan İzleme Aracı'!$C$4:C41,'Puan İzleme Aracı'!C41) -> 0
B71: 39 | C71: ='Puan İzleme Aracı'!C42&COUNTIF('Puan İzleme Aracı'!$C$4:C42,'Puan İzleme Aracı'!C42) -> 0
B72: 40 | C72: ='Puan İzleme Aracı'!C43&COUNTIF('Puan İzleme Aracı'!$C$4:C43,'Puan İzleme Aracı'!C43) -> 0
B73: 41 | C73: ='Puan İzleme Aracı'!C44&COUNTIF('Puan İzleme Aracı'!$C$4:C44,'Puan İzleme Aracı'!C44) -> 0
B74: 42 | C74: ='Puan İzleme Aracı'!C45&COUNTIF('Puan İzleme Aracı'!$C$4:C45,'Puan İzleme Aracı'!C45) -> 0
B75: 43 | C75: ='Puan İzleme Aracı'!C46&COUNTIF('Puan İzleme Aracı'!$C$4:C46,'Puan İzleme Aracı'!C46) -> 0
B76: 44 | C76: ='Puan İzleme Aracı'!C47&COUNTIF('Puan İzleme Aracı'!$C$4:C47,'Puan İzleme Aracı'!C47) -> 0
B77: 45 | C77: ='Puan İzleme Aracı'!C48&COUNTIF('Puan İzleme Aracı'!$C$4:C48,'Puan İzleme Aracı'!C48) -> 0
B78: 46 | C78: ='Puan İzleme Aracı'!C49&COUNTIF('Puan İzleme Aracı'!$C$4:C49,'Puan İzleme Aracı'!C49) -> 0
B79: 47 | C79: ='Puan İzleme Aracı'!C50&COUNTIF('Puan İzleme Aracı'!$C$4:C50,'Puan İzleme Aracı'!C50) -> 0
B80: 48 | C80: ='Puan İzleme Aracı'!C51&COUNTIF('Puan İzleme Aracı'!$C$4:C51,'Puan İzleme Aracı'!C51) -> 0
B81: 49 | C81: ='Puan İzleme Aracı'!C52&COUNTIF('Puan İzleme Aracı'!$C$4:C52,'Puan İzleme Aracı'!C52) -> 0
B82: 50 | C82: ='Puan İzleme Aracı'!C53&COUNTIF('Puan İzleme Aracı'!$C$4:C53,'Puan İzleme Aracı'!C53) -> 0
B83: 51 | C83: ='Puan İzleme Aracı'!C54&COUNTIF('Puan İzleme Aracı'!$C$4:C54,'Puan İzleme Aracı'!C54) -> 0
B84: 52 | C84: ='Puan İzleme Aracı'!C55&COUNTIF('Puan İzleme Aracı'!$C$4:C55,'Puan İzleme Aracı'!C55) -> 0
B85: 53 | C85: ='Puan İzleme Aracı'!C56&COUNTIF('Puan İzleme Aracı'!$C$4:C56,'Puan İzleme Aracı'!C56) -> 0
B86: 54 | C86: ='Puan İzleme Aracı'!C57&COUNTIF('Puan İzleme Aracı'!$C$4:C57,'Puan İzleme Aracı'!C57) -> 0
B87: 55 | C87: ='Puan İzleme Aracı'!C58&COUNTIF('Puan İzleme Aracı'!$C$4:C58,'Puan İzleme Aracı'!C58) -> 0
B88: 56 | C88: ='Puan İzleme Aracı'!C59&COUNTIF('Puan İzleme Aracı'!$C$4:C59,'Puan İzleme Aracı'!C59) -> 0
B89: 57 | C89: ='Puan İzleme Aracı'!C60&COUNTIF('Puan İzleme Aracı'!$C$4:C60,'Puan İzleme Aracı'!C60) -> 0
B90: 58 | C90: ='Puan İzleme Aracı'!C61&COUNTIF('Puan İzleme Aracı'!$C$4:C61,'Puan İzleme Aracı'!C61) -> 0
B91: 59 | C91: ='Puan İzleme Aracı'!C62&COUNTIF('Puan İzleme Aracı'!$C$4:C62,'Puan İzleme Aracı'!C62) -> 0
B92: 60 | C92: ='Puan İzleme Aracı'!C63&COUNTIF('Puan İzleme Aracı'!$C$4:C63,'Puan İzleme Aracı'!C63) -> 0
B93: 61 | C93: ='Puan İzleme Aracı'!C64&COUNTIF('Puan İzleme Aracı'!$C$4:C64,'Puan İzleme Aracı'!C64) -> 0
B94: 62 | C94: ='Puan İzleme Aracı'!C65&COUNTIF('Puan İzleme Aracı'!$C$4:C65,'Puan İzleme Aracı'!C65) -> 0
B95: 63 | C95: ='Puan İzleme Aracı'!C66&COUNTIF('Puan İzleme Aracı'!$C$4:C66,'Puan İzleme Aracı'!C66) -> 0
B96: 64 | C96: ='Puan İzleme Aracı'!C67&COUNTIF('Puan İzleme Aracı'!$C$4:C67,'Puan İzleme Aracı'!C67) -> 0
B97: 65 | C97: ='Puan İzleme Aracı'!C68&COUNTIF('Puan İzleme Aracı'!$C$4:C68,'Puan İzleme Aracı'!C68) -> 0
B98: 66 | C98: ='Puan İzleme Aracı'!C69&COUNTIF('Puan İzleme Aracı'!$C$4:C69,'Puan İzleme Aracı'!C69) -> 0
B99: 67 | C99: ='Puan İzleme Aracı'!C70&COUNTIF('Puan İzleme Aracı'!$C$4:C70,'Puan İzleme Aracı'!C70) -> 0
B100: 68 | C100: ='Puan İzleme Aracı'!C71&COUNTIF('Puan İzleme Aracı'!$C$4:C71,'Puan İzleme Aracı'!C71) -> 0
B101: 69 | C101: ='Puan İzleme Aracı'!C72&COUNTIF('Puan İzleme Aracı'!$C$4:C72,'Puan İzleme Aracı'!C72) -> 0
B102: 70 | C102: ='Puan İzleme Aracı'!C73&COUNTIF('Puan İzleme Aracı'!$C$4:C73,'Puan İzleme Aracı'!C73) -> 0
B103: 71 | C103: ='Puan İzleme Aracı'!C74&COUNTIF('Puan İzleme Aracı'!$C$4:C74,'Puan İzleme Aracı'!C74) -> 0
B104: 72 | C104: ='Puan İzleme Aracı'!C75&COUNTIF('Puan İzleme Aracı'!$C$4:C75,'Puan İzleme Aracı'!C75) -> 0
B105: 73 | C105: ='Puan İzleme Aracı'!C76&COUNTIF('Puan İzleme Aracı'!$C$4:C76,'Puan İzleme Aracı'!C76) -> 0
B106: 74 | C106: ='Puan İzleme Aracı'!C77&COUNTIF('Puan İzleme Aracı'!$C$4:C77,'Puan İzleme Aracı'!C77) -> 0
B107: 75 | C107: ='Puan İzleme Aracı'!C78&COUNTIF('Puan İzleme Aracı'!$C$4:C78,'Puan İzleme Aracı'!C78) -> 0
B108: 76 | C108: ='Puan İzleme Aracı'!C79&COUNTIF('Puan İzleme Aracı'!$C$4:C79,'Puan İzleme Aracı'!C79) -> 0
B109: 77 | C109: ='Puan İzleme Aracı'!C80&COUNTIF('Puan İzleme Aracı'!$C$4:C80,'Puan İzleme Aracı'!C80) -> 0
B110: 78 | C110: ='Puan İzleme Aracı'!C81&COUNTIF('Puan İzleme Aracı'!$C$4:C81,'Puan İzleme Aracı'!C81) -> 0
B111: 79 | C111: ='Puan İzleme Aracı'!C82&COUNTIF('Puan İzleme Aracı'!$C$4:C82,'Puan İzleme Aracı'!C82) -> 0
B112: 80 | C112: ='Puan İzleme Aracı'!C83&COUNTIF('Puan İzleme Aracı'!$C$4:C83,'Puan İzleme Aracı'!C83) -> 0
B113: 81 | C113: ='Puan İzleme Aracı'!C84&COUNTIF('Puan İzleme Aracı'!$C$4:C84,'Puan İzleme Aracı'!C84) -> 0
B114: 82 | C114: ='Puan İzleme Aracı'!C85&COUNTIF('Puan İzleme Aracı'!$C$4:C85,'Puan İzleme Aracı'!C85) -> 0
B115: 83 | C115: ='Puan İzleme Aracı'!C86&COUNTIF('Puan İzleme Aracı'!$C$4:C86,'Puan İzleme Aracı'!C86) -> 0
B116: 84 | C116: ='Puan İzleme Aracı'!C87&COUNTIF('Puan İzleme Aracı'!$C$4:C87,'Puan İzleme Aracı'!C87) -> 0
B117: 85 | C117: ='Puan İzleme Aracı'!C88&COUNTIF('Puan İzleme Aracı'!$C$4:C88,'Puan İzleme Aracı'!C88) -> 0
B118: 86 | C118: ='Puan İzleme Aracı'!C89&COUNTIF('Puan İzleme Aracı'!$C$4:C89,'Puan İzleme Aracı'!C89) -> 0
B119: 87 | C119: ='Puan İzleme Aracı'!C90&COUNTIF('Puan İzleme Aracı'!$C$4:C90,'Puan İzleme Aracı'!C90) -> 0
B120: 88 | C120: ='Puan İzleme Aracı'!C91&COUNTIF('Puan İzleme Aracı'!$C$4:C91,'Puan İzleme Aracı'!C91) -> 0
B121: 89 | C121: ='Puan İzleme Aracı'!C92&COUNTIF('Puan İzleme Aracı'!$C$4:C92,'Puan İzleme Aracı'!C92) -> 0
B122: 90 | C122: ='Puan İzleme Aracı'!C93&COUNTIF('Puan İzleme Aracı'!$C$4:C93,'Puan İzleme Aracı'!C93) -> 0
B123: 91 | C123: ='Puan İzleme Aracı'!C94&COUNTIF('Puan İzleme Aracı'!$C$4:C94,'Puan İzleme Aracı'!C94) -> 0
B124: 92 | C124: ='Puan İzleme Aracı'!C95&COUNTIF('Puan İzleme Aracı'!$C$4:C95,'Puan İzleme Aracı'!C95) -> 0
B125: 93 | C125: ='Puan İzleme Aracı'!C96&COUNTIF('Puan İzleme Aracı'!$C$4:C96,'Puan İzleme Aracı'!C96) -> 0
B126: 94 | C126: ='Puan İzleme Aracı'!C97&COUNTIF('Puan İzleme Aracı'!$C$4:C97,'Puan İzleme Aracı'!C97) -> 0
B127: 95 | C127: ='Puan İzleme Aracı'!C98&COUNTIF('Puan İzleme Aracı'!$C$4:C98,'Puan İzleme Aracı'!C98) -> 0
B128: 96 | C128: ='Puan İzleme Aracı'!C99&COUNTIF('Puan İzleme Aracı'!$C$4:C99,'Puan İzleme Aracı'!C99) -> 0
B129: 97 | C129: ='Puan İzleme Aracı'!C100&COUNTIF('Puan İzleme Aracı'!$C$4:C100,'Puan İzleme Aracı'!C100) -> 0
B130: 98 | C130: ='Puan İzleme Aracı'!C101&COUNTIF('Puan İzleme Aracı'!$C$4:C101,'Puan İzleme Aracı'!C101) -> 0
B131: 99 | C131: ='Puan İzleme Aracı'!C102&COUNTIF('Puan İzleme Aracı'!$C$4:C102,'Puan İzleme Aracı'!C102) -> 0
B132: 100 | C132: ='Puan İzleme Aracı'!C103&COUNTIF('Puan İzleme Aracı'!$C$4:C103,'Puan İzleme Aracı'!C103) -> 0
B133: 101 | C133: ='Puan İzleme Aracı'!C104&COUNTIF('Puan İzleme Aracı'!$C$4:C104,'Puan İzleme Aracı'!C104) -> 0
B134: 102 | C134: ='Puan İzleme Aracı'!C105&COUNTIF('Puan İzleme Aracı'!$C$4:C105,'Puan İzleme Aracı'!C105) -> 0
B135: 103 | C135: ='Puan İzleme Aracı'!C106&COUNTIF('Puan İzleme Aracı'!$C$4:C106,'Puan İzleme Aracı'!C106) -> 0
B136: 104 | C136: ='Puan İzleme Aracı'!C107&COUNTIF('Puan İzleme Aracı'!$C$4:C107,'Puan İzleme Aracı'!C107) -> 0
B137: 105 | C137: ='Puan İzleme Aracı'!C108&COUNTIF('Puan İzleme Aracı'!$C$4:C108,'Puan İzleme Aracı'!C108) -> 0
B138: 106 | C138: ='Puan İzleme Aracı'!C109&COUNTIF('Puan İzleme Aracı'!$C$4:C109,'Puan İzleme Aracı'!C109) -> 0
B139: 107 | C139: ='Puan İzleme Aracı'!C110&COUNTIF('Puan İzleme Aracı'!$C$4:C110,'Puan İzleme Aracı'!C110) -> 0
B140: 108 | C140: ='Puan İzleme Aracı'!C111&COUNTIF('Puan İzleme Aracı'!$C$4:C111,'Puan İzleme Aracı'!C111) -> 0
B141: 109 | C141: ='Puan İzleme Aracı'!C112&COUNTIF('Puan İzleme Aracı'!$C$4:C112,'Puan İzleme Aracı'!C112) -> 0
B142: 110 | C142: ='Puan İzleme Aracı'!C113&COUNTIF('Puan İzleme Aracı'!$C$4:C113,'Puan İzleme Aracı'!C113) -> 0
B143: 111 | C143: ='Puan İzleme Aracı'!C114&COUNTIF('Puan İzleme Aracı'!$C$4:C114,'Puan İzleme Aracı'!C114) -> 0
B144: 112 | C144: ='Puan İzleme Aracı'!C115&COUNTIF('Puan İzleme Aracı'!$C$4:C115,'Puan İzleme Aracı'!C115) -> 0
B145: 113 | C145: ='Puan İzleme Aracı'!C116&COUNTIF('Puan İzleme Aracı'!$C$4:C116,'Puan İzleme Aracı'!C116) -> 0
B146: 114 | C146: ='Puan İzleme Aracı'!C117&COUNTIF('Puan İzleme Aracı'!$C$4:C117,'Puan İzleme Aracı'!C117) -> 0
B147: 115 | C147: ='Puan İzleme Aracı'!C118&COUNTIF('Puan İzleme Aracı'!$C$4:C118,'Puan İzleme Aracı'!C118) -> 0
B148: 116 | C148: ='Puan İzleme Aracı'!C119&COUNTIF('Puan İzleme Aracı'!$C$4:C119,'Puan İzleme Aracı'!C119) -> 0
B149: 117 | C149: ='Puan İzleme Aracı'!C120&COUNTIF('Puan İzleme Aracı'!$C$4:C120,'Puan İzleme Aracı'!C120) -> 0
B150: 118 | C150: ='Puan İzleme Aracı'!C121&COUNTIF('Puan İzleme Aracı'!$C$4:C121,'Puan İzleme Aracı'!C121) -> 0
B151: 119 | C151: ='Puan İzleme Aracı'!C122&COUNTIF('Puan İzleme Aracı'!$C$4:C122,'Puan İzleme Aracı'!C122) -> 0
B152: 120 | C152: ='Puan İzleme Aracı'!C123&COUNTIF('Puan İzleme Aracı'!$C$4:C123,'Puan İzleme Aracı'!C123) -> 0
B153: 121 | C153: ='Puan İzleme Aracı'!C124&COUNTIF('Puan İzleme Aracı'!$C$4:C124,'Puan İzleme Aracı'!C124) -> 0
B154: 122 | C154: ='Puan İzleme Aracı'!C125&COUNTIF('Puan İzleme Aracı'!$C$4:C125,'Puan İzleme Aracı'!C125) -> 0
B155: 123 | C155: ='Puan İzleme Aracı'!C126&COUNTIF('Puan İzleme Aracı'!$C$4:C126,'Puan İzleme Aracı'!C126) -> 0
B156: 124 | C156: ='Puan İzleme Aracı'!C127&COUNTIF('Puan İzleme Aracı'!$C$4:C127,'Puan İzleme Aracı'!C127) -> 0
B157: 125 | C157: ='Puan İzleme Aracı'!C128&COUNTIF('Puan İzleme Aracı'!$C$4:C128,'Puan İzleme Aracı'!C128) -> 0
B158: 126 | C158: ='Puan İzleme Aracı'!C129&COUNTIF('Puan İzleme Aracı'!$C$4:C129,'Puan İzleme Aracı'!C129) -> 0
B159: 127 | C159: ='Puan İzleme Aracı'!C130&COUNTIF('Puan İzleme Aracı'!$C$4:C130,'Puan İzleme Aracı'!C130) -> 0
B160: 128 | C160: ='Puan İzleme Aracı'!C131&COUNTIF('Puan İzleme Aracı'!$C$4:C131,'Puan İzleme Aracı'!C131) -> 0
B161: 129 | C161: ='Puan İzleme Aracı'!C132&COUNTIF('Puan İzleme Aracı'!$C$4:C132,'Puan İzleme Aracı'!C132) -> 0
B162: 130 | C162: ='Puan İzleme Aracı'!C133&COUNTIF('Puan İzleme Aracı'!$C$4:C133,'Puan İzleme Aracı'!C133) -> 0
B163: 131 | C163: ='Puan İzleme Aracı'!C134&COUNTIF('Puan İzleme Aracı'!$C$4:C134,'Puan İzleme Aracı'!C134) -> 0
B164: 132 | C164: ='Puan İzleme Aracı'!C135&COUNTIF('Puan İzleme Aracı'!$C$4:C135,'Puan İzleme Aracı'!C135) -> 0
B165: 133 | C165: ='Puan İzleme Aracı'!C136&COUNTIF('Puan İzleme Aracı'!$C$4:C136,'Puan İzleme Aracı'!C136) -> 0
B166: 134 | C166: ='Puan İzleme Aracı'!C137&COUNTIF('Puan İzleme Aracı'!$C$4:C137,'Puan İzleme Aracı'!C137) -> 0
B167: 135 | C167: ='Puan İzleme Aracı'!C138&COUNTIF('Puan İzleme Aracı'!$C$4:C138,'Puan İzleme Aracı'!C138) -> 0
B168: 136 | C168: ='Puan İzleme Aracı'!C139&COUNTIF('Puan İzleme Aracı'!$C$4:C139,'Puan İzleme Aracı'!C139) -> 0
B169: 137 | C169: ='Puan İzleme Aracı'!C140&COUNTIF('Puan İzleme Aracı'!$C$4:C140,'Puan İzleme Aracı'!C140) -> 0
B170: 138 | C170: ='Puan İzleme Aracı'!C141&COUNTIF('Puan İzleme Aracı'!$C$4:C141,'Puan İzleme Aracı'!C141) -> 0
B171: 139 | C171: ='Puan İzleme Aracı'!C142&COUNTIF('Puan İzleme Aracı'!$C$4:C142,'Puan İzleme Aracı'!C142) -> 0
B172: 140 | C172: ='Puan İzleme Aracı'!C143&COUNTIF('Puan İzleme Aracı'!$C$4:C143,'Puan İzleme Aracı'!C143) -> 0
B173: 141 | C173: ='Puan İzleme Aracı'!C144&COUNTIF('Puan İzleme Aracı'!$C$4:C144,'Puan İzleme Aracı'!C144) -> 0
B174: 142 | C174: ='Puan İzleme Aracı'!C145&COUNTIF('Puan İzleme Aracı'!$C$4:C145,'Puan İzleme Aracı'!C145) -> 0
B175: 143 | C175: ='Puan İzleme Aracı'!C146&COUNTIF('Puan İzleme Aracı'!$C$4:C146,'Puan İzleme Aracı'!C146) -> 0
B176: 144 | C176: ='Puan İzleme Aracı'!C147&COUNTIF('Puan İzleme Aracı'!$C$4:C147,'Puan İzleme Aracı'!C147) -> 0
B177: 145 | C177: ='Puan İzleme Aracı'!C148&COUNTIF('Puan İzleme Aracı'!$C$4:C148,'Puan İzleme Aracı'!C148) -> 0
B178: 146 | C178: ='Puan İzleme Aracı'!C149&COUNTIF('Puan İzleme Aracı'!$C$4:C149,'Puan İzleme Aracı'!C149) -> 0
B179: 147 | C179: ='Puan İzleme Aracı'!C150&COUNTIF('Puan İzleme Aracı'!$C$4:C150,'Puan İzleme Aracı'!C150) -> 0
B180: 148 | C180: ='Puan İzleme Aracı'!C151&COUNTIF('Puan İzleme Aracı'!$C$4:C151,'Puan İzleme Aracı'!C151) -> 0
B181: 149 | C181: ='Puan İzleme Aracı'!C152&COUNTIF('Puan İzleme Aracı'!$C$4:C152,'Puan İzleme Aracı'!C152) -> 0
B182: 150 | C182: ='Puan İzleme Aracı'!C153&COUNTIF('Puan İzleme Aracı'!$C$4:C153,'Puan İzleme Aracı'!C153) -> 0
B183: 151 | C183: ='Puan İzleme Aracı'!C154&COUNTIF('Puan İzleme Aracı'!$C$4:C154,'Puan İzleme Aracı'!C154) -> 0
B184: 152 | C184: ='Puan İzleme Aracı'!C155&COUNTIF('Puan İzleme Aracı'!$C$4:C155,'Puan İzleme Aracı'!C155) -> 0
B185: 153 | C185: ='Puan İzleme Aracı'!C156&COUNTIF('Puan İzleme Aracı'!$C$4:C156,'Puan İzleme Aracı'!C156) -> 0
B186: 154 | C186: ='Puan İzleme Aracı'!C157&COUNTIF('Puan İzleme Aracı'!$C$4:C157,'Puan İzleme Aracı'!C157) -> 0
B187: 155 | C187: ='Puan İzleme Aracı'!C158&COUNTIF('Puan İzleme Aracı'!$C$4:C158,'Puan İzleme Aracı'!C158) -> 0
B188: 156 | C188: ='Puan İzleme Aracı'!C159&COUNTIF('Puan İzleme Aracı'!$C$4:C159,'Puan İzleme Aracı'!C159) -> 0
B189: 157 | C189: ='Puan İzleme Aracı'!C160&COUNTIF('Puan İzleme Aracı'!$C$4:C160,'Puan İzleme Aracı'!C160) -> 0
B190: 158 | C190: ='Puan İzleme Aracı'!C161&COUNTIF('Puan İzleme Aracı'!$C$4:C161,'Puan İzleme Aracı'!C161) -> 0
B191: 159 | C191: ='Puan İzleme Aracı'!C162&COUNTIF('Puan İzleme Aracı'!$C$4:C162,'Puan İzleme Aracı'!C162) -> 0
B192: 160 | C192: ='Puan İzleme Aracı'!C163&COUNTIF('Puan İzleme Aracı'!$C$4:C163,'Puan İzleme Aracı'!C163) -> 0
B193: 161 | C193: ='Puan İzleme Aracı'!C164&COUNTIF('Puan İzleme Aracı'!$C$4:C164,'Puan İzleme Aracı'!C164) -> 0
B194: 162 | C194: ='Puan İzleme Aracı'!C165&COUNTIF('Puan İzleme Aracı'!$C$4:C165,'Puan İzleme Aracı'!C165) -> 0
B195: 163 | C195: ='Puan İzleme Aracı'!C166&COUNTIF('Puan İzleme Aracı'!$C$4:C166,'Puan İzleme Aracı'!C166) -> 0
B196: 164 | C196: ='Puan İzleme Aracı'!C167&COUNTIF('Puan İzleme Aracı'!$C$4:C167,'Puan İzleme Aracı'!C167) -> 0
B197: 165 | C197: ='Puan İzleme Aracı'!C168&COUNTIF('Puan İzleme Aracı'!$C$4:C168,'Puan İzleme Aracı'!C168) -> 0
B198: 166 | C198: ='Puan İzleme Aracı'!C169&COUNTIF('Puan İzleme Aracı'!$C$4:C169,'Puan İzleme Aracı'!C169) -> 0
B199: 167 | C199: ='Puan İzleme Aracı'!C170&COUNTIF('Puan İzleme Aracı'!$C$4:C170,'Puan İzleme Aracı'!C170) -> 0
B200: 168 | C200: ='Puan İzleme Aracı'!C171&COUNTIF('Puan İzleme Aracı'!$C$4:C171,'Puan İzleme Aracı'!C171) -> 0
B201: 169 | C201: ='Puan İzleme Aracı'!C172&COUNTIF('Puan İzleme Aracı'!$C$4:C172,'Puan İzleme Aracı'!C172) -> 0
B202: 170 | C202: ='Puan İzleme Aracı'!C173&COUNTIF('Puan İzleme Aracı'!$C$4:C173,'Puan İzleme Aracı'!C173) -> 0
B203: 171 | C203: ='Puan İzleme Aracı'!C174&COUNTIF('Puan İzleme Aracı'!$C$4:C174,'Puan İzleme Aracı'!C174) -> 0
... 454 more rows
